lending/lending_fUSD_20251218
["ID","MTS","AMOUNT","RATE_DAILY","PERIOD"]
[398965585,1766029844826,-664.10507821,0.00038457,2]
[398965587,1766029844835,-150.0,0.00038475,7]
[398965589,1766029844845,-150.0,0.00038483,7]
[398965591,1766029844855,-205.74864735,0.00038497,7]
[398965593,1766029844868,-150.0,0.00038502,7]
[398965595,1766029844877,-150.0,0.00038502,7]
[398965597,1766029844887,-205.74864735,0.00038538,7]
[398965599,1766029844897,-150.0,0.00038541,7]
[398965601,1766029844906,-150.0,0.00038559,7]
[398965603,1766029844915,-150.0,0.00038559,7]
[398965605,1766029844925,-205.74864735,0.00038579,7]
[398965607,1766029844936,-205.74864735,0.00038621,7]
[398965609,1766029844946,-150.0,0.00038635,7]
[398965611,1766029844955,-150.0,0.00038642,7]
[398965613,1766029844964,-205.74864735,0.00038662,7]
[398965615,1766029844974,-150.0,0.00038691,7]
[398965617,1766029844983,-1322.44825796,0.00038693,2]
[398965619,1766029844993,-205.74864735,0.00038704,7]
[398965621,1766029845002,-205.74864735,0.00038745,7]
[398965623,1766029845011,-150.0,0.00038787,7]
[398965625,1766029845021,-205.74864735,0.00038787,7]
[398965628,1766029845031,-150.0,0.00038787,7]
[398965630,1766029845042,-150.0,0.00038787,7]
[398965632,1766029845051,-150.0,0.00038828,7]
[398965634,1766029845059,-150.0,0.00038828,7]
[398965635,1766029845069,-205.74864735,0.00038828,7]
[398965638,1766029845079,-150.0,0.00038857,7]
[398965640,1766029845088,-205.74864735,0.0003887,7]
[398965642,1766029845100,-217.6275,0.00038904,120]
[398965644,1766029845111,-150.0,0.00038904,120]
[398965646,1766029845121,-150.0,0.00038904,120]
[398965647,1766029845130,-150.0,0.00038907,7]
[398965650,1766029845139,-205.74864735,0.00038911,7]
[398965652,1766029845149,-211.08544388,0.00038931,2]
[398965654,1766029845158,-150.0,0.00038939,7]
[398965656,1766029845167,-205.74864735,0.00038953,7]
[398965658,1766029845176,-205.74864735,0.00038994,7]
[398965660,1766029845185,-2013.3,0.00039,39]
[398965662,1766029845195,-150.0,0.00039015,7]
[398965664,1766029845205,-150.0,0.00039015,7]
[398965666,1766029845214,-150.0,0.00039015,7]
[398965668,1766029845223,-150.0,0.00039015,7]
[398965670,1766029845232,-150.0,0.00039015,7]
[398965672,1766029845242,-150.0,0.00039015,7]
[398965674,1766029845251,-150.0,0.00039015,7]
[398965676,1766029845260,-205.74864735,0.00039036,7]
[398965678,1766029845269,-500.0,0.00039072,60]
[398965680,1766029845278,-125142.63217122,0.00039073,2]
[398965824,1766029846654,-151.0,0.00032877,31]
[398965826,1766029846664,-116.13303958,0.00039073,2]
[398965862,1766029846984,-151.0,0.00032877,31]
[398965864,1766029846993,-280.936078,0.00032877,31]
[398965866,1766029847003,-151.0,0.00035947,31]
[398965868,1766029847011,-15224.54846544,0.00039073,2]
[398965870,1766029847022,-507.24097996,0.00039073,2]
[398965873,1766029847037,-220011.0395257,0.00039073,2]
[398965875,1766029847046,-233.668488,0.00039073,120]
[398965877,1766029847055,-151.0,0.00039073,120]
[398965879,1766029847063,-151.0,0.00039073,120]
[398965881,1766029847072,-189.99558,0.00039073,120]
[398965883,1766029847081,-189.99558,0.00039073,120]
[398965885,1766029847090,-189.99558,0.00039073,120]
[398965887,1766029847099,-189.99558,0.00039073,120]
[398965889,1766029847107,-151.0,0.00039073,120]
[398965891,1766029847116,-295.559314,0.00039073,120]
[398965893,1766029847125,-226.497154,0.00039073,120]
[398965895,1766029847135,-151.0,0.00039073,120]
[398965897,1766029847143,-151.0,0.00039073,120]
[398965899,1766029847152,-151.0,0.00039073,120]
[398965900,1766029847161,-205.74864735,0.00039077,7]
[398965902,1766029847171,-150.0,0.00039091,7]
[398965904,1766029847180,-205.74864735,0.00039119,7]
[398965906,1766029847189,-150.0,0.00039123,7]
[398965908,1766029847198,-205.74864735,0.0003916,7]
[398965910,1766029847207,-646.72,0.00039171,120]
[398965912,1766029847216,-150.0,0.00039173,7]
[398965915,1766029847226,-435.255,0.00039178,120]
[398965916,1766029847235,-300.0,0.00039178,120]
[398965919,1766029847247,-300.0,0.00039178,120]
[398965921,1766029847256,-150.0,0.00039202,7]
[398965923,1766029847265,-150.0,0.00039202,7]
[398965925,1766029847274,-205.74864735,0.00039202,7]
[398965927,1766029847283,-150.0,0.00039243,7]
[398965928,1766029847292,-205.74864735,0.00039243,7]
[398965930,1766029847301,-150.0,0.00039243,7]
[398965932,1766029847311,-150.0,0.00039243,7]
[398965934,1766029847321,-205.74864735,0.00039285,7]
[398965936,1766029847330,-664.10507821,0.00039305,2]
[398965938,1766029847339,-205.74864735,0.00039326,7]
[398965940,1766029847348,-150.0,0.00039339,7]
[398965942,1766029847357,-205.74864735,0.00039368,7]
[398965944,1766029847367,-150.0,0.00039388,7]
[398965946,1766029847376,-150.0,0.00039395,7]
[398965948,1766029847386,-205.74864735,0.00039409,7]
[398965950,1766029847396,-205.74864735,0.00039451,7]
[398965952,1766029847405,-652.8825,0.00039452,120]
[398965954,1766029847415,-450.0,0.00039452,120]
[398965956,1766029847424,-450.0,0.00039452,120]
[398965958,1766029847433,-3815.14,0.00039452,120]
[398965960,1766029847443,-150.0,0.00039471,7]
[398965962,1766029847451,-150.0,0.00039471,7]
[398965964,1766029847460,-150.0,0.00039489,7]
[398965966,1766029847470,-205.74864735,0.00039492,7]
[398965968,1766029847479,-150.0,0.00039528,7]
[398965970,1766029847487,-150.0,0.00039528,7]
[398965972,1766029847496,-205.74864735,0.00039534,7]
[398965974,1766029847506,-150.0,0.00039547,7]
[398965976,1766029847515,-150.0,0.00039555,7]
[398965978,1766029847524,-200.0,0.0003957,20]
[398965980,1766029847533,-200.0,0.00039571,20]
[398965982,1766029847543,-150.0,0.00039575,7]
[398965984,1766029847552,-150.0,0.00039575,7]
[398965986,1766029847561,-205.74864735,0.00039575,7]
[398965988,1766029847570,-165.29,0.00039598,60]
[398965990,1766029847579,-205.74864735,0.00039617,7]
[398965992,1766029847588,-503.19,0.00039654,2]
[398965994,1766029847598,-205.74864735,0.00039658,7]
[398965996,1766029847607,-150.0,0.000397,7]
[398965998,1766029847616,-205.74864735,0.000397,7]
[398966000,1766029847626,-150.0,0.000397,7]
[398966002,1766029847635,-150.0,0.000397,7]
[398966004,1766029847643,-870.51,0.00039726,120]
[398966006,1766029847652,-600.0,0.00039726,120]
[398966008,1766029847661,-600.0,0.00039726,120]
[398966010,1766029847670,-205.74864735,0.00039741,7]
[398966012,1766029847680,-150.0,0.00039762,7]
[398966014,1766029847689,-150.0,0.00039772,7]
[398966016,1766029847699,-205.74864735,0.00039783,7]
[398966018,1766029847707,-14131.2900515,0.00039789,120]
[398966020,1766029847717,-3297.4163,0.000398,2]
[398966022,1766029847725,-1109.89975676,0.000398,2]
[398966024,1766029847734,-150.0,0.00039805,7]
[398966026,1766029847743,-205.74864735,0.00039824,7]
[398966028,1766029847752,-150.0,0.00039852,7]
[398966030,1766029847761,-205.74864735,0.00039865,7]
[398966032,1766029847770,-276.38338364,0.0003989,2]
[398966034,1766029847779,-414.560393,0.0003989,60]
[398966036,1766029847789,-500.0,0.0003989,60]
[398966038,1766029847798,-439.04531606,0.0003989,2]
[398966040,1766029847807,-500.0,0.00039898,60]
[398966042,1766029847816,-256.8,0.00039899,60]
[398966043,1766029847826,-357.99434966,0.00039899,3]
[398966045,1766029847836,-2000.0,0.00039899,3]
[398966048,1766029847846,-2000.0,0.00039899,3]
[398966050,1766029847855,-1000.0,0.00039899,3]
[398966052,1766029847868,-553.64373807,0.00039899,3]
[398966054,1766029847877,-1000.0,0.00039899,3]
[398966056,1766029847887,-1000.0,0.00039899,3]
[398966058,1766029847896,-200.0,0.00039899,3]
[398966060,1766029847906,-1000.0,0.00039899,3]
[398966062,1766029847915,-1000.0,0.00039899,3]
[398966064,1766029847924,-1000.0,0.00039899,3]
[398966066,1766029847934,-676.63427701,0.00039899,3]
[398966068,1766029847944,-1000.0,0.00039899,3]
[398966070,1766029847953,-1000.0,0.00039899,3]
[398966072,1766029847962,-1000.0,0.00039899,3]
[398966074,1766029847971,-1000.0,0.00039899,3]
[398966076,1766029847980,-1000.0,0.00039899,3]
[398966078,1766029847989,-620.0,0.00039899,3]
[398966080,1766029847998,-9552.16786547,0.00039899,3]
[398966082,1766029848008,-1000.0,0.00039899,3]
[398966084,1766029848017,-9542.53000014,0.00039899,3]
[398966086,1766029848029,-363.06807636,0.00039899,3]
[398966088,1766029848039,-738.33360364,0.00039899,3]
[398966091,1766029848051,-261.66639636,0.00039899,3]
[398966092,1766029848060,-9387.37340203,0.00039899,3]
[398966094,1766029848069,-1000.0,0.00039899,3]
[398966096,1766029848078,-2009.0,0.00039899,3]
[398966098,1766029848088,-200.0,0.00039899,3]
[398966100,1766029848096,-207.4,0.00039899,3]
[398966102,1766029848105,-215.0738,0.00039899,3]
[398966104,1766029848114,-223.0315306,0.00039899,3]
[398966106,1766029848124,-231.28369723,0.00039899,3]
[398966108,1766029848133,-239.84119403,0.00039899,3]
[398966110,1766029848143,-383.69630064,0.00039899,3]
[398966112,1766029848152,-500.0,0.00039899,3]
[398966114,1766029848161,-500.0,0.00039899,3]
[398966116,1766029848171,-500.0,0.00039899,3]
[398966118,1766029848179,-500.0,0.00039899,3]
[398966120,1766029848188,-500.0,0.00039899,3]
[398966122,1766029848197,-500.0,0.00039899,3]
[398966124,1766029848206,-500.0,0.00039899,3]
[398966126,1766029848216,-500.0,0.00039899,3]
[398966128,1766029848225,-322.79787442,0.00039899,3]
[398966130,1766029848234,-848148.83580473,0.000399,3]
[398966133,1766029848247,-3865.14,0.000399,3]
[398966135,1766029848263,-52083.61426913,0.000399,3]
[398966137,1766029848277,-18154.05041426,0.000399,3]
[398966148,1766029848376,-103407.55274809,0.000399,3]
[398966150,1766029848387,-153.431892,0.000399,120]
[398966152,1766029848396,-189.99558,0.000399,120]
[398966153,1766029848405,-189.99558,0.000399,120]
[398966154,1766029848414,-189.99558,0.000399,120]
[398966155,1766029848423,-189.995587,0.000399,120]
[398966157,1766029848432,-205.74864735,0.00039907,7]
[398966159,1766029848444,-150.0,0.00039928,7]
[398966161,1766029848453,-150.0,0.00039928,7]
[398966163,1766029848462,-150.0,0.00039948,7]
[398966165,1766029848471,-150.0,0.00039948,7]
[398966167,1766029848481,-205.74864735,0.00039948,7]
[398966169,1766029848491,-150.0,0.00039988,7]
[398966171,1766029848500,-205.74864735,0.0003999,7]
[398966173,1766029848508,-1386.207,0.00039995,56]
[398966175,1766029848518,-67255.43253392,0.0004,2]
[398966177,1766029848527,-165.16,0.0004,2]
[398966179,1766029848535,-196.5865056,0.0004,120]
[398966181,1766029848546,-1000.0,0.0004,7]
[398966183,1766029848555,-502.1818897,0.0004,7]
[398966185,1766029848564,-2000.0,0.0004,60]
[398966187,1766029848573,-176.89721524,0.0004,120]
[398966189,1766029848582,-817.13700213,0.0004,30]
[398966191,1766029848591,-1088.1375,0.0004,120]
[398966193,1766029848600,-750.0,0.0004,120]
[398966195,1766029848609,-219.25,0.0004,120]
[398966197,1766029848618,-349.89,0.0004,120]
[398966199,1766029848627,-627.7,0.0004,120]
[398966201,1766029848636,-750.0,0.0004,120]
[398966203,1766029848645,-150.0,0.00040004,7]
[398966205,1766029848654,-205.74864735,0.00040031,7]
[398966207,1766029848664,-150.0,0.00040042,7]
[398966209,1766029848673,-150.0,0.00040042,7]
[398966211,1766029848683,-150.0,0.00040042,7]
[398966213,1766029848692,-150.0,0.00040042,7]
[398966215,1766029848701,-205.74864735,0.00040073,7]
[398966217,1766029848710,-205.74864735,0.00040114,7]
[398966219,1766029848719,-150.0,0.00040121,7]
[398966221,1766029848728,-150.0,0.00040135,7]
[398966223,1766029848737,-480.82,0.00040137,2]
[398966225,1766029848747,-664.10507821,0.00040152,2]
[398966227,1766029848757,-150.0,0.00040156,7]
[398966229,1766029848768,-205.74864735,0.00040156,7]
[398966231,1766029848778,-150.0,0.00040156,7]
[398966233,1766029848787,-150.0,0.00040156,7]
[398966235,1766029848796,-107.71430676,0.00040197,7]
[398966238,1766029848811,-98.03434059,0.00040197,7]
[398966240,1766029848821,-150.0,0.00040204,7]
[398966242,1766029848830,-205.74864735,0.00040239,7]
[398966244,1766029848839,-511.63701206,0.00040273,120]
[398966246,1766029848849,-492.98298303,0.00040273,120]
[398966248,1766029848861,-301.14500491,0.00040273,120]
[398966251,1766029848872,-210.21834679,0.00040273,120]
[398966252,1766029848881,-900.0,0.00040273,120]
[398966254,1766029848890,-2194.51,0.00040274,2]
[398966279,1766029849107,-553.34,0.00040274,2]
[398966281,1766029849117,-205.74864735,0.0004028,7]
[398966283,1766029849126,-986.585749,0.00040281,120]
[398966285,1766029849135,-150.0,0.00040308,7]
[398966287,1766029849144,-150.0,0.00040322,7]
[398966289,1766029849154,-150.0,0.00040322,7]
[398966291,1766029849163,-205.74864735,0.00040322,7]
[398966293,1766029849172,-205.74864735,0.00040363,7]
[398966295,1766029849181,-150.0,0.00040384,7]
[398966297,1766029849191,-150.0,0.00040384,7]
[398966299,1766029849200,-1109.89975674,0.000404,2]
[398966301,1766029849211,-205.74864735,0.00040405,7]
[398966303,1766029849227,-150.0,0.0004042,7]
[398966305,1766029849243,-150.0,0.00040437,7]
[398966307,1766029849254,-205.74864735,0.00040446,7]
[398966309,1766029849263,-150.0,0.0004046,7]
[398966311,1766029849273,-205.74864735,0.00040488,7]
[398966313,1766029849282,-2000.0,0.000405,60]
[398966315,1766029849292,-150.0,0.00040508,7]
[398966317,1766029849301,-205.74864735,0.00040529,7]
[398966319,1766029849310,-1523.3925,0.00040547,120]
[398966321,1766029849320,-1050.0,0.00040547,120]
[398966323,1766029849330,-3815.14,0.00040547,120]
[398966325,1766029849340,-150.0,0.00040555,7]
[398966327,1766029849349,-150.0,0.00040555,7]
[398966329,1766029849359,-205.74864735,0.00040571,7]
[398966331,1766029849368,-150.0,0.00040612,7]
[398966333,1766029849377,-205.74864735,0.00040612,7]
[398966335,1766029849387,-150.0,0.00040612,7]
[398966337,1766029849396,-150.0,0.00040612,7]
[398966339,1766029849405,-150.0,0.00040636,7]
[398966341,1766029849415,-205.74864735,0.00040654,7]
[398966343,1766029849424,-150.0,0.00040695,7]
[398966345,1766029849433,-150.0,0.00040695,7]
[398966347,1766029849443,-205.74864735,0.00040695,7]
[398966349,1766029849452,-205.74864735,0.00040737,7]
[398966351,1766029849461,-150.0,0.00040753,7]
[398966353,1766029849470,-150.0,0.00040764,7]
[398966355,1766029849479,-205.74864735,0.00040778,7]
[398966357,1766029849489,-205.74864735,0.0004082,7]
[398966359,1766029849499,-1741.02,0.00040821,120]
[398966361,1766029849508,-1200.0,0.00040821,120]
[398966363,1766029849519,-150.0,0.0004084,7]
[398966365,1766029849529,-150.0,0.0004084,7]
[398966367,1766029849539,-150.0,0.00040852,7]
[398966369,1766029849548,-205.74864735,0.00040861,7]
[398966371,1766029849558,-150.0,0.00040882,7]
[398966373,1766029849567,-205.74864735,0.00040903,7]
[398966375,1766029849577,-150.0,0.00040916,7]
[398966377,1766029849586,-205.74864735,0.00040944,7]
[398966379,1766029849596,-1439.0,0.00040965,30]
[398966381,1766029849605,-205.74864735,0.00040986,7]
[398966383,1766029849615,-2703.93866681,0.00040995,15]
[398966385,1766029849624,-5225.44266853,0.00040995,15]
[398966387,1766029849633,-520.36234562,0.00041,30]
[398966389,1766029849642,-300.0,0.00041,45]
[398966391,1766029849651,-482.32382641,0.00041,120]
[398966393,1766029849660,-7372.0,0.00041,120]
[398966395,1766029849670,-1152.08412459,0.00041,2]
[398966397,1766029849679,-178.23166973,0.00041,2]
[398966398,1766029849690,-211.08544388,0.00041,120]
[398966399,1766029849701,-1109.89975674,0.00041,2]
[398966400,1766029849710,-664.10507821,0.00041,2]
[398966401,1766029849720,-205.74864735,0.00041027,7]
[398966402,1766029849730,-150.0,0.00041068,30]
[398966403,1766029849739,-150.0,0.00041068,2]
[398966404,1766029849747,-167.40399447,0.00041068,7]
[398966405,1766029849756,-206.74475216,0.00041068,7]
[398966406,1766029849766,-245.79338322,0.00041068,7]
[398966407,1766029849775,-205.74864735,0.00041068,7]
[398966408,1766029849784,-172.17643339,0.00041068,7]
[398966409,1766029849793,-153.01463389,0.00041068,7]
[398966410,1766029849803,-288.73794334,0.00041068,7]
[398966411,1766029849813,-151.86266277,0.00041068,7]
[398966412,1766029849822,-244.28578739,0.00041068,7]
[398966413,1766029849832,-152.35984984,0.00041068,7]
[398966414,1766029849841,-159.71310388,0.00041068,7]
[398966416,1766029849850,-156.25688309,0.00041068,7]
[398966418,1766029849861,-206.95046778,0.00041068,7]
[398966420,1766029849872,-439.04531606,0.00041085,7]
[398966422,1766029849881,-303.42168329,0.00041094,60]
[398966424,1766029849893,-223.10831671,0.00041094,60]
[398966426,1766029849903,-526.53,0.00041094,60]
[398966428,1766029849912,-2110.75781042,0.00041094,120]
[398967416,1766029862066,2500.0,0.00019437,120]
[398967424,1766031032256,-300.0,0.00016997,2]
[398967425,1766031032266,-300.0,0.00016997,2]
[398967426,1766031032275,-1200.0,0.00016997,2]
[398967427,1766031032284,-2500.0,0.00016997,2]
[398967428,1766031032293,-2500.0,0.00016998,2]
[398967429,1766031032302,-2500.0,0.00016998,2]
[398967430,1766031032311,-152.75,0.00016998,2]
[398967431,1766031032321,-500.0,0.00016999,2]
[398967432,1766031032329,-500.0,0.00016999,2]
[398967433,1766031032339,-500.0,0.00016999,2]
[398967434,1766031032347,-559.57,0.00016999,2]
[398967435,1766031032356,-500.0,0.00016999,2]
[398967436,1766031032365,-553.06,0.00016999,2]
[398967437,1766031032374,-461.16791245,0.00016999,2]
[398967438,1766031032385,-38.83208755,0.00016999,2]
[398967439,1766031032394,-500.0,0.00016999,2]
[398967440,1766031032404,-166.05887345,0.00016999,2]
[398967441,1766031032419,-259.11,0.00016999,2]
[398967442,1766031032431,-40.51462072,0.00016999,2]
[398967443,1766031032441,-420.0,0.00018564,2]
[398967444,1766031032451,-133.17097771,0.00018697,2]
[398967445,1766031032468,-2366.82902229,0.00018697,2]
[398967446,1766031032477,-2500.0,0.00018697,2]
[398967448,1766031032486,-300.0,0.00018697,2]
[398967450,1766031032495,-153.0,0.00020664,2]
[398967452,1766031032504,-250.0,0.00021197,2]
[398967454,1766031032514,-57.63611152,0.00021693,7]
[398967469,1766031038343,-242.35388848,0.00021693,7]
[398967470,1766031038354,-115.40162361,0.00024658,5]
[398967471,1766031038561,-446.49837639,0.00024658,5]
[398967472,1766031038574,-1000.0,0.00030136,26]
[398967473,1766031038586,-322.7392854,0.00030137,16]
[398967474,1766031038601,-426.4607146,0.00030137,16]
[398967475,1766031038613,-150.0,0.00033,14]
[398967477,1766031038626,-675.13,0.0003506,2]
[398967478,1766031038638,-150.0,0.00035183,2]
[398967479,1766031038651,-449.3404125,0.00035615,30]
[398967480,1766031038665,-550.6595875,0.00035615,30]
[398967481,1766031038677,-229.34041251,0.00035616,69]
[398967482,1766031038703,-332.55958749,0.00035616,69]
[398967483,1766031038714,-174.285,0.00035616,42]
[398967484,1766031038727,-875.042,0.00035616,42]
[398967485,1766031038739,-70.48841206,0.00035834,14]
[398967505,1766031040293,-429.51158794,0.00035834,14]
[398967506,1766031040305,-1000.0,0.00035943,2]
[398967507,1766031040316,-232.75310666,0.00035946,30]
[398967508,1766031040348,-767.24689334,0.00035946,30]
[398967509,1766031040359,-538.93,0.00036361,30]
[398967510,1766031040370,-170.67353782,0.00036986,7]
[398967511,1766031040382,-150.0,0.00036986,7]
[398967512,1766031040393,-1000.0,0.00037299,14]
[398967513,1766031040404,-8080.27370178,0.00037457,2]
[398967514,1766031040420,-1919.72629822,0.00037457,2]
[398967515,1766031040432,-1000.0,0.00037556,13]
[398967516,1766031040444,-1000.0,0.00037799,30]
[398967517,1766031040455,-4321.47249231,0.000378,117]
[398967518,1766031040488,-241.00250002,0.000378,117]
[398967519,1766031040503,-356.90157413,0.000378,117]
[398967520,1766031040620,-586.62343354,0.000378,117]
[398967521,1766031040632,-497.6232846,0.00037999,30]
[398967522,1766031040648,-435.0,0.00037999,30]
[398967561,1766031043357,-67.3767154,0.00037999,30]
[398967562,1766031043369,-1000.0,0.0003812,2]
[398967563,1766031043382,-1000.0,0.00038278,10]
[398967564,1766031043394,-1153.0,0.000384,2]
[398967565,1766031043406,-1000.0,0.00038999,30]
[398967566,1766031043418,-800.0,0.00039244,14]
[398967567,1766031043430,-800.0,0.00039244,14]
[398967568,1766031043442,-800.0,0.00039244,14]
[398967569,1766031043453,-800.0,0.00039244,14]
[398967570,1766031043465,-800.0,0.00039244,14]
[398967571,1766031043477,-800.0,0.00039244,14]
[398967572,1766031043488,-553.46167296,0.00039244,14]
[398967573,1766031043499,-800.0,0.00039244,14]
[398967574,1766031043510,-800.0,0.00039244,14]
[398967575,1766031043521,-800.0,0.00039244,14]
[398967576,1766031043532,-800.0,0.00039244,14]
[398967577,1766031043543,-800.0,0.00039244,14]
[398967578,1766031043554,-800.0,0.00039244,14]
[398967579,1766031043565,-800.0,0.00039244,14]
[398967580,1766031043577,-800.0,0.00039244,14]
[398967581,1766031043588,-1000.0,0.0003957,20]
[398967582,1766031043599,-658.69,0.00039671,2]
[398967583,1766031043610,-480.97,0.00039671,2]
[398967584,1766031043622,-480.97,0.00039671,2]
[398967586,1766031043633,-881.63217197,0.00039836,2]
[398967588,1766031043644,-867.54,0.0003989,5]
[398967590,1766031043655,-1000.0,0.00039899,3]
[398967593,1766031043667,-1000.0,0.00039994,30]
[398967595,1766031043677,-277.7,0.00040063,6]
[398967597,1766031043688,-170.49,0.00040082,2]
[398967599,1766031043699,-1120.2,0.00040082,2]
[398967601,1766031043710,-170.56,0.00040082,2]
[398967604,1766031043721,-300.0,0.00040082,2]
[398967606,1766031043732,-928.46,0.00040082,2]
[398967608,1766031043743,-4639.2541,0.0004025,2]
[398967610,1766031043753,-5016.65835351,0.0004025,2]
[398967617,1766031043803,-1530.65164649,0.0004025,2]
[398967619,1766031043814,-259.84503952,0.00040331,28]
[398967621,1766031043825,-4963.42952712,0.0004035,3]
[398967623,1766031043836,-208.27865548,0.00040359,31]
[398967625,1766031043847,-496.99488127,0.00040359,31]
[398967627,1766031043857,-326.80969,0.00040359,120]
[398967630,1766031043868,-500.0,0.00040359,31]
[398967632,1766031043879,-500.0,0.00040359,31]
[398967634,1766031043890,-155.09274362,0.00040359,31]
[398967636,1766031043901,-549.20933684,0.00040359,15]
[398967638,1766031043911,-500.0,0.00040359,31]
[398967641,1766031043922,-500.0,0.00040359,31]
[398967643,1766031043934,-500.0,0.00040359,31]
[398967645,1766031043945,-500.0,0.00040359,31]
[398967647,1766031043956,-500.0,0.00040359,31]
[398967649,1766031043967,-352.31626514,0.00040359,31]
[398967650,1766031043979,-500.0,0.00040359,31]
[398967651,1766031043991,-500.0,0.00040359,31]
[398967652,1766031044002,-500.0,0.00040359,31]
[398967653,1766031044012,-159.86005895,0.00040359,31]
[398967654,1766031044026,-340.13994105,0.00040359,31]
[398967655,1766031044037,-500.0,0.00040359,31]
[398967656,1766031044048,-316.70118215,0.00040359,31]
[398967657,1766031044062,-183.29881785,0.00040359,31]
[398967658,1766031044074,-500.0,0.00040359,31]
[398967659,1766031044086,-500.0,0.00040359,31]
[398967660,1766031044097,-310.88728286,0.00040359,31]
[398967661,1766031044111,-189.11271714,0.00040359,31]
[398967662,1766031044122,-237.47916938,0.00040359,31]
[398967663,1766031044135,-262.52083062,0.00040359,31]
[398967664,1766031044146,-500.0,0.00040359,31]
[398967665,1766031044158,-500.0,0.00040359,31]
[398967666,1766031044173,-432472.4791694,0.0004036,2]
[398967667,1766031044187,-1791.1003985,0.0004036,2]
[398967668,1766031044201,-384.996,0.0004036,2]
[398967669,1766031047902,-598.44994,0.0004036,2]
[398967670,1766031047913,-1635.42329318,0.0004036,2]
[398967671,1766031047925,-538.9811538,0.0004036,2]
[398967672,1766031047940,-3644.00857318,0.0004036,2]
[398967673,1766031047951,-67145.6273669,0.0004036,2]
[398967674,1766031047962,-904.6348448,0.0004036,2]
[398967689,1766032231442,-575.6218544,0.0001399,2]
[398967691,1766032231453,-404.53844161,0.0001399,2]
[398967692,1766032231494,-446.99893371,0.0001399,2]
[398967693,1766032231551,-416.97000018,0.0001399,2]
[398967694,1766032231562,-315.28959052,0.0001399,2]
[398967695,1766032231574,-339.41690156,0.0001399,2]
[398967696,1766032231607,-462.11065713,0.0001399,2]
[398967697,1766032231618,-467.45030931,0.0001399,2]
[398967702,1766032237251,-573.16702032,0.0001399,2]
[398967703,1766032237525,-292.696336,0.0001399,2]
[398967704,1766032237582,-611.20545117,0.0001399,2]
[398967705,1766032237593,-990.98677168,0.0001399,2]
[398967892,1766032239518,-2420.35852919,0.0001399,2]
[398967894,1766032239528,-500.0,0.00015999,2]
[398967896,1766032239538,-171.20718823,0.00015999,2]
[398967898,1766032239547,-71674.6779888,0.00016,4]
[398967900,1766032239558,-17106.89637393,0.00016,4]
[398967909,1766032239629,-365.8057879,0.00016,4]
[398967911,1766032239640,-939.80292319,0.00016,4]
[398967914,1766032239689,-2250.44360571,0.00016,4]
[398967918,1766032239799,-277828.38078268,0.00016,4]
[398967920,1766032239808,-1000.0,0.000165,2]
[398967922,1766032239817,-899.47,0.000165,2]
[398967924,1766032239826,-2500.0,0.00016823,2]
[398967926,1766032239835,-2500.0,0.00016823,2]
[398967928,1766032239844,-250.0,0.00018485,2]
[398967930,1766032239853,-340032.20708224,0.0001985,2]
[398967932,1766032239864,-1131.25256214,0.0001985,2]
[398967934,1766032239876,-1820.89468532,0.0001985,2]
[398968261,1766032243005,-409.47152291,0.0001985,2]
[398968263,1766032243017,-500.0,0.0001985,2]
[398968527,1766032245562,-533.9999989,0.0001985,2]
[398968529,1766032245573,-5823.65458347,0.0001985,2]
[398968541,1766032245671,-167618.01449985,0.0001985,2]